fUST/lending_fUST_20250615
["ID","MTS","AMOUNT","RATE_DAILY","PERIOD"]
[365955230,1749996651321,-307.5017373,0.00023483,2]
[365955232,1749996651330,-177.0323298,0.00023483,2]
[365955234,1749996651341,-153.0,0.00023483,2]
[365955236,1749996651350,-177.0323298,0.00023483,2]
[365955238,1749996651360,-153.0,0.00023483,2]
[365955240,1749996651369,-153.0,0.00023483,2]
[365955242,1749996651378,-177.0323298,0.00023483,2]
[365955244,1749996651387,-573.8932911,0.00023483,2]
[365955246,1749996651397,-153.0,0.00023483,2]
[365955247,1749996651406,-573.8932911,0.00023483,2]
[365955250,1749996651416,-177.0323298,0.00023483,2]
[365955251,1749996651426,-565.974267,0.00023483,2]
[365955254,1749996651436,-866.58698264,0.00023486,9]
[365955256,1749996651445,-280.71795802,0.00023498,2]
[365955258,1749996651455,-233.91815171,0.00023499,2]
[365955260,1749996651464,-1395.69821834,0.00023499,2]
[365955262,1749996651474,-200.0,0.00023499,2]
[365955264,1749996651483,-462745.97173234,0.00023499,15]
[365955278,1749996651620,-737342.38606663,0.00023499,15]
[365955300,1749996651821,-182.26575541,0.00022191,2]
[365955310,1749996651904,-430.0,0.00019178,2]
[365955312,1749996651917,-2827.30061498,0.00019178,2]
[365955314,1749996651928,-559.48,0.00019178,2]
[365955316,1749996651939,-984.84,0.00019178,2]
[365955334,1749996652100,-33.41869322,0.00019178,2]
[365955345,1749996652203,-1357.1773281,0.00019178,2]
[365955346,1749996652212,-460.0,0.00019178,2]
[365955347,1749996652221,-460.0,0.00019178,2]
[365955348,1749996652231,-460.0,0.00019178,2]
[365955349,1749996652240,-460.0,0.00019452,2]
[365955350,1749996652249,-400.0,0.00019726,2]
[365955351,1749996652260,-460.0,0.00019726,2]
[365955352,1749996652269,-460.0,0.0002,2]
[365955353,1749996652278,-418.08433621,0.00020273,2]
[365955354,1749996652287,-507.71424459,0.00022191,2]
[365955355,1749996652297,-689.98,0.00022465,2]
[365955356,1749996652306,-689.98,0.00022739,2]
[365955358,1749996652315,-689.98,0.00023013,2]
[365955360,1749996652324,-689.98,0.00023287,2]
[365955362,1749996652334,-93015.02295048,0.00023499,15]
[365955416,1749996652832,-460.0,0.00019178,2]
[365955418,1749996652841,-460.0,0.00019178,2]
[365955420,1749996652851,-460.0,0.00019452,2]
[365955422,1749996652860,-594.30553085,0.00019452,2]
[365955424,1749996652869,-460.0,0.00019726,2]
[365955426,1749996652878,-460.0,0.0002,2]
[365955428,1749996652888,-460.0,0.00020273,2]
[365955430,1749996652898,-460.0,0.00020547,2]
[365955432,1749996652907,-460.0,0.00020821,2]
[365955434,1749996652916,-250.86,0.00021095,2]
[365955436,1749996652926,-365.2062734,0.00023178,2]
[365955437,1749996652936,-7999.6395357,0.00023499,15]
[365955439,1749996652946,-1718.5244607,0.000235,2]
[365955787,1749996656280,300.0,0.00019177,2]
[365956386,1749996662846,300.0,0.00019177,2]
[365959496,1749996702391,222.04152509,0.00019078,2]
[365959498,1749996723105,300.0,0.00019177,2]
[365959499,1749996723369,165.7,0.00019177,2]
[365959518,1749997125140,7621.1690977,0.00017767,2]
[365959519,1749997125952,200.0,0.00024657,120]
[365959525,1749997216291,200.0,0.00024984,60]
[365959527,1749997248808,449.398447,0.00013699,2]
[365959531,1749997377183,222.0415251,0.00017801,2]
[365959533,1749997400501,435.192746,0.0001771,2]
[365959537,1749997533116,-150.26498568,0.000182,2]
[365959540,1749997625147,-193.71099716,0.0001811,2]
[365959541,1749997625169,-4498.73501432,0.000182,2]
[365959542,1749997625193,-300.0,0.00018204,2]
[365959543,1749997625216,-298.0,0.00018204,2]
[365959544,1749997625239,-300.0,0.00018204,2]
[365959545,1749997625262,-300.0,0.00018205,2]
[365959546,1749997625284,-300.0,0.00018205,2]
[365959547,1749997625306,-300.0,0.00018205,2]
[365959548,1749997625329,-1200.0,0.00018205,2]
[365959549,1749997625352,-500.0,0.00018205,2]
[365959550,1749997625388,-500.0,0.00018205,2]
[365959551,1749997625412,-500.0,0.00018205,2]
[365959552,1749997625437,-500.0,0.00018205,2]
[365959553,1749997625459,-500.0,0.00018205,2]
[365959554,1749997625483,-500.0,0.00018205,2]
[365959555,1749997625508,-500.0,0.00018205,2]
[365959556,1749997625533,-600.0,0.00018205,2]
[365959557,1749997625556,-437.56560725,0.00018205,2]
[365959558,1749997625579,-500.0,0.00018205,2]
[365959559,1749997625602,-500.0,0.00018205,2]
[365959560,1749997625625,-500.0,0.00018205,2]
[365959561,1749997625647,-500.0,0.00018205,2]
[365959562,1749997625672,-500.0,0.00018205,2]
[365959563,1749997625697,-500.0,0.00018205,2]
[365959564,1749997625721,-109.78908264,0.00018205,2]
[365959565,1749997631287,-390.21091736,0.00018205,2]
[365959566,1749997631314,-500.0,0.00018205,2]
[365959567,1749997631340,-500.0,0.00018205,2]
[365959568,1749997631364,-500.0,0.00018205,2]
[365959569,1749997631390,-500.0,0.00018205,2]
[365959570,1749997631413,-262.24860329,0.00018205,2]
[365959571,1749997631437,-500.0,0.00018205,2]
[365959572,1749997631461,-500.0,0.00018205,2]
[365959573,1749997631485,-200.0,0.00018205,2]
[365959574,1749997631510,-500.0,0.00018205,2]
[365959575,1749997631533,-500.0,0.00018205,2]
[365959576,1749997631560,-500.0,0.00018205,2]
[365959577,1749997631582,-500.0,0.00018205,2]
[365959578,1749997631606,-500.0,0.00018205,2]
[365959579,1749997631632,-500.0,0.00018205,2]
[365959580,1749997631657,-500.0,0.00018205,2]
[365959581,1749997631682,-550.0,0.00018205,2]
[365959582,1749997631709,-500.0,0.00018205,2]
[365959583,1749997631735,-500.0,0.00018205,2]
[365959584,1749997631758,-500.0,0.00018205,2]
[365959585,1749997631786,-500.0,0.00018205,2]
[365959586,1749997631809,-500.0,0.00018205,2]
[365959587,1749997631831,-500.0,0.00018205,2]
[365959588,1749997631855,-500.0,0.00018205,2]
[365959589,1749997631881,-500.0,0.00018206,2]
[365959590,1749997631912,-500.0,0.00018206,2]
[365959591,1749997631938,-500.0,0.00018206,2]
[365959592,1749997631964,-500.0,0.00018206,2]
[365959593,1749997631990,-500.0,0.00018206,2]
[365959594,1749997632017,-284.45705262,0.00018206,2]
[365959595,1749997661855,3422.8314258,0.00017842,2]
[365959596,1749997672754,-157.74935064,0.00018,2]
[365959605,1749997718597,-417.78541315,0.00018,2]
[365959606,1749997727456,157.74935064,0.000179,2]
[365959607,1749997743074,300.0,0.00017999,2]
[365959608,1749997745159,-204.76240816,0.00018,2]
[365959609,1749997746112,-1003.72142564,0.00018,2]
[365959610,1749997746135,-14935.55078476,0.00018,2]
[365959611,1749997748346,-300.0,0.00018,2]
[365959612,1749997757182,-19906.03704457,0.00018,2]
[365959613,1749997757203,-174.68143795,0.00018,2]
[365959614,1749997757225,-349.27989871,0.00018106,2]
[365959615,1749997757250,-500.0,0.00018205,2]
[365959616,1749997757271,-500.0,0.00018205,2]
[365959617,1749997757295,-472.37024606,0.00018205,2]
[365959618,1749997757317,-26779.6865597,0.00018206,2]
[365959619,1749997757341,-500.0,0.0001821,2]
[365959620,1749997757365,-500.0,0.0001821,2]
[365959621,1749997757389,-500.0,0.0001821,2]
[365959622,1749997757413,-500.0,0.0001821,2]
[365959623,1749997757437,-500.0,0.0001821,2]
[365959624,1749997757461,-500.0,0.0001821,2]
[365959625,1749997757486,-500.0,0.0001821,2]
[365959626,1749997757510,-500.0,0.0001821,2]
[365959627,1749997757534,-500.0,0.0001821,2]
[365959628,1749997757559,-500.0,0.0001821,2]
[365959629,1749997757584,-500.0,0.0001821,2]
[365959630,1749997757609,-500.0,0.0001821,2]
[365959631,1749997757635,-500.0,0.0001821,2]
[365959632,1749997757661,-500.0,0.0001821,2]
[365959633,1749997757686,-500.0,0.0001821,2]
[365959634,1749997757711,-409.00847292,0.0001821,2]
[365959635,1749997757736,-500.0,0.0001821,2]
[365959636,1749997757761,-500.0,0.0001821,2]
[365959637,1749997757786,-500.0,0.0001821,2]
[365959638,1749997757813,-500.0,0.0001821,2]
[365959639,1749997757838,-500.0,0.0001821,2]
[365959640,1749997757863,-500.0,0.0001821,2]
[365959641,1749997757888,-500.0,0.0001821,2]
[365959642,1749997757912,-500.0,0.0001821,2]
[365959643,1749997757938,-500.0,0.0001821,2]
[365959644,1749997757964,-500.5874888,0.0001821,2]
[365959645,1749997757987,-24900.0,0.00018211,2]
[365959646,1749997758009,-307.5599253,0.0001831,2]
[365959647,1749997758035,-162.6384244,0.0001855,2]
[365959648,1749997758057,-938.77342414,0.000189,2]
[365959649,1749997758081,-287.6554292,0.00018956,2]
[365959650,1749997758104,-349.27989864,0.00019077,2]
[365959651,1749997758128,-334.7491397,0.00019078,2]
[365959652,1749997762085,500.58748879,0.0001821,2]
[365959653,1749997762117,-2974.92343361,0.00019166,2]
[365959654,1749997762141,-366.43399899,0.00019178,2]
[365959655,1749997762164,-430.0,0.00019178,2]
[365959656,1749997762186,-460.0,0.00019178,2]
[365959657,1749997762208,-460.0,0.00019178,2]
[365959658,1749997762231,-460.0,0.00019178,2]
[365959659,1749997762254,-460.0,0.00019178,2]
[365959660,1749997762276,-460.0,0.00019178,2]
[365959661,1749997762299,-460.0,0.00019178,2]
[365959662,1749997762322,-460.0,0.00019178,2]
[365959663,1749997762345,-440.0,0.00019178,2]
[365959664,1749997762367,-460.0,0.00019178,2]
[365959665,1749997762390,-432.65054917,0.00019178,2]
[365959666,1749997762412,-575.717177,0.00019178,2]
[365959667,1749997762433,-431.8071557,0.00019178,2]
[365959668,1749997762455,-460.0,0.00019178,2]
[365959669,1749997762476,-460.0,0.00019178,2]
[365959670,1749997762498,-460.0,0.00019178,2]
[365959671,1749997762520,-460.0,0.00019178,2]
[365959672,1749997762542,-460.0,0.00019178,2]
[365959673,1749997762566,-460.0,0.00019178,2]
[365959674,1749997762587,-580.98281249,0.00019178,2]
[365959675,1749997762609,-463.4461495,0.00019178,2]
[365959676,1749997762632,-460.0,0.00019178,2]
[365959677,1749997762654,-460.0,0.00019178,2]
[365959678,1749997762676,-460.0,0.00019178,2]
[365959679,1749997762698,-460.0,0.00019178,2]
[365959680,1749997762720,-430.0,0.00019178,2]
[365959681,1749997762743,-460.0,0.00019178,2]
[365959682,1749997762765,-542.99828187,0.00019178,2]
[365959683,1749997762787,-242.07185399,0.00019178,2]
[365959684,1749997771108,-217.92814601,0.00019178,2]
[365959685,1749997771129,-460.0,0.00019178,2]
[365959686,1749997771150,-460.0,0.00019178,2]
[365959687,1749997771170,-440.0,0.00019178,2]
[365959688,1749997771191,-460.0,0.00019178,2]
[365959689,1749997771211,-460.0,0.00019178,2]
[365959690,1749997771230,-438.01766789,0.00019178,2]
[365959691,1749997771250,-405.1604439,0.00019178,2]
[365959692,1749997771270,-460.0,0.00019178,2]
[365959693,1749997771291,-460.0,0.00019178,2]
[365959694,1749997771312,-460.0,0.00019178,2]
[365959695,1749997771332,-460.0,0.00019178,2]
[365959696,1749997771352,-460.0,0.00019178,2]
[365959697,1749997771372,-460.0,0.00019178,2]
[365959698,1749997771393,-460.0,0.00019178,2]
[365959699,1749997771414,-332.88801505,0.00019178,2]
[365959700,1749997771433,-460.0,0.00019178,2]
[365959701,1749997771452,-576.48571038,0.00019178,2]
[365959702,1749997771472,-460.0,0.00019178,2]
[365959703,1749997771493,-454.28802195,0.00019178,2]
[365959704,1749997771513,-460.0,0.00019178,2]
[365959705,1749997771532,-401.82915316,0.00019178,2]
[365959706,1749997771552,-460.0,0.00019178,2]
[365959707,1749997771572,-328.30114213,0.00019178,2]
[365959708,1749997771591,-226.53535668,0.00019178,2]
[365959709,1749997771612,-460.0,0.00019178,2]
[365959710,1749997771633,-460.0,0.00019178,2]
[365959711,1749997771654,-460.0,0.00019178,2]
[365959712,1749997771674,-460.0,0.00019178,2]
[365959713,1749997771694,-515.40365239,0.00019178,2]
[365959714,1749997771713,-460.0,0.00019178,2]
[365959715,1749997771734,-543.94,0.00019178,2]
[365959716,1749997771755,-460.0,0.00019178,2]
[365959717,1749997771895,-440.0,0.00019178,2]
[365959718,1749997771917,-460.0,0.00019178,2]
[365959719,1749997771937,-460.0,0.00019178,2]
[365959720,1749997771957,-460.0,0.00019178,2]
[365959721,1749997771978,-460.0,0.00019178,2]
[365959722,1749997771998,-149.96078665,0.00019178,2]
[365959724,1749997781846,500.0,0.00018205,2]
[365959725,1749997781875,500.0,0.00018205,2]
[365959726,1749997781906,500.0,0.00018205,2]
[365959727,1749997781952,394.78419633,0.00018205,2]
[365959728,1749997781989,183.15240256,0.00018205,2]
[365959729,1749997782731,500.0,0.00018205,2]
[365959730,1749997788691,608.65190997,0.0001821,2]
[365959731,1749997789043,608.65190997,0.0001821,2]
[365959732,1749997789419,608.65190997,0.0001821,2]
[365959733,1749997789795,608.65190997,0.0001821,2]
[365959734,1749997790279,608.65190997,0.0001821,2]
[365959735,1749997790989,608.65190997,0.0001821,2]
[365959736,1749997791383,608.65190997,0.0001821,2]
[365959737,1749997791740,608.65190997,0.0001821,2]
[365959738,1749997798624,500.0,0.00018205,2]
[365959739,1749997798652,500.0,0.00018205,2]
[365959740,1749997798682,500.0,0.00018205,2]
[365959741,1749997798731,500.0,0.00018205,2]
[365959742,1749997798998,500.0,0.00018205,2]
[365959743,1749997799059,177.55402058,0.00018205,2]
[365959745,1749997803724,2702.09742634,0.0001821,2]
[365959746,1749997803936,1578.77086333,0.0001821,2]
[365959813,1749997832119,-160.35747013,0.0001901,2]
[365959815,1749997832128,-387.42199432,0.00019078,2]
[365959817,1749997832138,-1654.58073069,0.00019078,2]
[365959820,1749997832147,-229.79473488,0.00019166,2]
[365959823,1749997832157,-2536.98672886,0.00019166,2]
[365959825,1749997832166,-476.25,0.00019168,3]
[365959827,1749997832176,-302.6,0.00019168,3]
[365959829,1749997832186,-151.3,0.00019168,3]
[365959831,1749997832195,-300.0,0.00019176,2]
[365959833,1749997832204,-300.0,0.00019176,2]
[365959835,1749997832214,-1200.0,0.00019176,2]
[365959837,1749997832224,-4220.77,0.00019177,2]
[365959840,1749997832233,-4220.77,0.00019177,2]
[365959843,1749997832243,-4220.77,0.00019177,2]
[365959846,1749997832252,-4220.77,0.00019177,2]
[365959849,1749997832262,-300.0,0.00019177,2]
[365959852,1749997832271,-4220.77,0.00019177,2]
[365959855,1749997832280,-4220.77,0.00019177,2]
[365959858,1749997832290,-4220.77,0.00019177,2]
[365959861,1749997832302,-4220.77,0.00019177,2]
[365959864,1749997832312,-4220.77,0.00019177,2]
[365959867,1749997832321,-4220.77,0.00019177,2]
[365959870,1749997832331,-500.0,0.00019177,2]
[365959874,1749997832341,-500.0,0.00019177,2]
[365959877,1749997832350,-310.03921335,0.00019178,2]
[365959879,1749997832361,-460.0,0.00019178,2]
[365959881,1749997832370,-413.79721582,0.00019178,2]
[365959883,1749997832380,-440.0,0.00019178,2]
[365959885,1749997832389,-460.0,0.00019178,2]
[365959887,1749997832398,-254.85964708,0.00019178,2]
[365959889,1749997832408,-460.0,0.00019178,2]
[365959891,1749997832417,-460.0,0.00019178,2]
[365959893,1749997832427,-460.0,0.00019178,2]
[365959895,1749997832437,-460.0,0.00019178,2]
[365959897,1749997832446,-460.0,0.00019178,2]
[365959899,1749997832456,-467.0783,0.00019178,2]
[365959901,1749997832466,-460.0,0.00019178,2]
[365959903,1749997832476,-460.0,0.00019178,2]
[365959905,1749997832486,-420.0,0.00019178,2]
[365959907,1749997832495,-440.0,0.00019178,2]
[365959909,1749997832505,-460.0,0.00019178,2]
[365959911,1749997832514,-460.0,0.00019178,2]
[365959912,1749997832526,-460.0,0.00019178,2]
[365959914,1749997832535,-460.0,0.00019178,2]
[365959916,1749997832545,-440.0,0.00019178,2]
[365959918,1749997832556,-460.0,0.00019178,2]
[365959920,1749997832566,-460.0,0.00019178,2]
[365959921,1749997832575,-170.35409438,0.00019178,2]
[365959923,1749997832585,-440.0,0.00019178,2]
[365959924,1749997832595,-440.0,0.00019178,2]
[365959926,1749997832604,-460.0,0.00019178,2]
[365959927,1749997832614,-420.0,0.00019178,2]
[365959928,1749997832623,-384.22612609,0.00019178,2]
[365959929,1749997832632,-444.21661399,0.00019178,2]
[365959930,1749997832642,-460.0,0.00019178,2]
[365959931,1749997832651,-460.0,0.00019178,2]
[365959932,1749997832661,-430.0,0.00019178,2]
[365959933,1749997832670,-460.0,0.00019178,2]
[365959934,1749997832680,-460.0,0.00019178,2]
[365959935,1749997832689,-276.78067423,0.00019178,2]
[365959936,1749997832699,-460.0,0.00019178,2]
[365959937,1749997832709,-430.0,0.00019178,2]
[365959938,1749997832718,-460.0,0.00019178,2]
[365959939,1749997832733,-460.0,0.00019178,2]
[365959940,1749997832746,-430.0,0.00019178,2]
[365959941,1749997832760,-460.0,0.00019178,2]
[365959942,1749997832774,-460.0,0.00019178,2]
[365959943,1749997832785,-460.0,0.00019178,2]
[365959944,1749997832797,-460.0,0.00019178,2]
[365959945,1749997832809,-460.0,0.00019178,2]
[365959946,1749997832822,-421.38873459,0.00019178,2]
[365959947,1749997832835,-460.0,0.00019178,2]
[365959948,1749997832848,-460.0,0.00019178,2]
[365959949,1749997832862,-440.0,0.00019178,2]
[365959950,1749997832877,-542.01732202,0.00019178,2]
[365959951,1749997832891,-460.0,0.00019178,2]
[365959952,1749997832905,-460.0,0.00019178,2]
[365959953,1749997832917,-471.55314848,0.00019178,2]
[365959954,1749997832930,-430.0,0.00019178,2]
[365959955,1749997832942,-431.83347166,0.00019178,2]
[365959956,1749997832954,-460.0,0.00019178,2]
[365959957,1749997832965,-460.0,0.00019178,2]
[365959958,1749997832978,-430.0,0.00019178,2]
[365959959,1749997832992,-460.0,0.00019178,2]
[365959960,1749997833004,-460.0,0.00019178,2]
[365959961,1749997833014,-836.38078461,0.00019178,2]
[365959962,1749997833025,-460.0,0.00019178,2]
[365959963,1749997833037,-460.0,0.00019178,2]
[365959964,1749997833050,-430.0,0.00019178,2]
[365959965,1749997833064,-460.0,0.00019178,2]
[365959966,1749997833077,-460.0,0.00019178,2]
[365959967,1749997833091,-460.0,0.00019178,2]
[365959968,1749997833104,-430.0,0.00019178,2]
[365959969,1749997833118,-440.0,0.00019178,2]
[365959970,1749997833132,-460.0,0.00019178,2]
[365959971,1749997833146,-460.0,0.00019178,2]
[365959972,1749997833160,-460.0,0.00019178,2]
[365959973,1749997833171,-460.0,0.00019178,2]
[365959974,1749997833182,-430.0,0.00019178,2]
[365959975,1749997833193,-439.86840454,0.00019178,2]
[365959976,1749997833205,-453.21201325,0.00019178,2]
[365959977,1749997833218,-440.0,0.00019178,2]
[365959978,1749997833231,-460.0,0.00019178,2]
[365959979,1749997833244,-221.12595463,0.00019178,2]
[365959980,1749997833255,-430.0,0.00019178,2]
[365959981,1749997833267,-460.0,0.00019178,2]
[365959982,1749997833279,-460.0,0.00019178,2]
[365959983,1749997833290,-433.35978339,0.00019178,2]
[365959984,1749997833304,-460.0,0.00019178,2]
[365959985,1749997833315,-430.0,0.00019178,2]
[365959986,1749997833326,-432.95260521,0.00019178,2]
[365959987,1749997833336,-460.0,0.00019178,2]
[365959988,1749997833347,-430.0,0.00019178,2]
[365959989,1749997833359,-460.0,0.00019178,2]
[365959990,1749997833370,-460.0,0.00019178,2]
[365959991,1749997833382,-411.0614052,0.00019178,2]
[365959992,1749997833394,-330.84574235,0.00019178,2]
[365959993,1749997833406,-460.0,0.00019178,2]
[365959994,1749997833417,-440.0,0.00019178,2]
[365959995,1749997833428,-460.0,0.00019178,2]
[365959996,1749997833439,-460.0,0.00019178,2]
[365959997,1749997833451,-440.0,0.00019178,2]
[365959998,1749997833462,-440.0,0.00019178,2]
[365959999,1749997833476,-440.0,0.00019178,2]
[365960000,1749997833487,-430.0,0.00019178,2]
[365960001,1749997833499,-463.97410003,0.00019178,2]
[365960002,1749997833510,-500.0,0.00019178,2]
[365960003,1749997833522,-440.0,0.00019178,2]
[365960004,1749997833533,-460.0,0.00019178,2]
[365960005,1749997833546,-460.0,0.00019178,2]
[365960006,1749997833558,-460.0,0.00019178,2]
[365960007,1749997833569,-460.0,0.00019178,2]
[365960008,1749997833582,-460.0,0.00019178,2]
[365960009,1749997833593,-430.0,0.00019178,2]
[365960010,1749997833605,-403.36382887,0.00019178,2]
[365960011,1749997833617,-431.27543301,0.00019178,2]
[365960012,1749997833628,-460.0,0.00019178,2]
[365960013,1749997833640,-430.0,0.00019178,2]
[365960014,1749997833651,-460.0,0.00019178,2]
[365960015,1749997833663,-430.0,0.00019178,2]
[365960016,1749997833675,-440.0,0.00019178,2]
[365960017,1749997833686,-460.0,0.00019178,2]
[365960018,1749997833698,-460.0,0.00019178,2]
[365960019,1749997833709,-460.0,0.00019178,2]
[365960020,1749997833722,-386.82370798,0.00019178,2]
[365960021,1749997833733,-435.81729814,0.00019178,2]
[365960022,1749997833745,-460.0,0.00019178,2]
[365960023,1749997833757,-460.0,0.00019178,2]
[365960024,1749997833768,-460.0,0.00019178,2]
[365960025,1749997833781,-460.0,0.00019178,2]
[365960026,1749997833793,-557.36849802,0.00019178,2]
[365960027,1749997833805,-460.0,0.00019178,2]
[365960028,1749997833818,-430.0,0.00019178,2]
[365960029,1749997833830,-460.0,0.00019178,2]
[365960030,1749997833842,-460.0,0.00019178,2]
[365960031,1749997833854,-460.0,0.00019178,2]
[365960032,1749997833869,-460.0,0.00019178,2]
[365960033,1749997833881,-420.5052941,0.00019178,2]
[365960034,1749997833893,-460.0,0.00019178,2]
[365960035,1749997833905,-460.0,0.00019178,2]
[365960036,1749997833916,-460.0,0.00019178,2]
[365960037,1749997833928,-400.0,0.00019178,2]
[365960038,1749997833941,-404.49380786,0.00019178,2]
[365960039,1749997833953,-429.93163251,0.00019178,2]
[365960040,1749997833965,-400.0,0.00019178,2]
[365960041,1749997833977,-460.0,0.00019178,2]
[365960042,1749997833989,-460.0,0.00019178,2]
[365960043,1749997834001,-386.13960987,0.00019178,2]
[365960044,1749997834013,-460.0,0.00019178,2]
[365960045,1749997834025,-460.0,0.00019178,2]
[365960046,1749997834038,-460.0,0.00019178,2]
[365960047,1749997834052,-460.0,0.00019178,2]
[365960048,1749997834062,-440.0,0.00019178,2]
[365960049,1749997834073,-460.0,0.00019178,2]
[365960050,1749997834083,-460.0,0.00019178,2]
[365960051,1749997834094,-460.0,0.00019178,2]
[365960052,1749997834104,-460.0,0.00019178,2]
[365960053,1749997834115,-460.0,0.00019178,2]
[365960054,1749997834283,-277.36376202,0.00019178,2]
[365960055,1749997834301,-460.0,0.00019178,2]
[365960056,1749997834311,-460.0,0.00019178,2]
[365960057,1749997834321,-460.0,0.00019178,2]
[365960058,1749997834332,-460.0,0.00019178,2]
[365960059,1749997834342,-440.0,0.00019178,2]
[365960060,1749997834352,-460.0,0.00019178,2]
[365960061,1749997834361,-460.0,0.00019178,2]
[365960062,1749997834371,-430.0,0.00019178,2]
[365960063,1749997834380,-270.0,0.00019178,2]
[365960064,1749997834391,-460.0,0.00019178,2]
[365960065,1749997834400,-460.0,0.00019178,2]
[365960066,1749997834410,-460.0,0.00019178,2]
[365960067,1749997834419,-440.0,0.00019178,2]
[365960068,1749997834429,-460.0,0.00019178,2]
[365960069,1749997834439,-460.0,0.00019178,2]
[365960070,1749997834448,-560.0,0.00019178,2]
[365960071,1749997834458,-460.0,0.00019178,2]
[365960072,1749997834468,-460.0,0.00019178,2]
[365960073,1749997834478,-460.0,0.00019178,2]
[365960074,1749997834487,-370.35426321,0.00019178,2]
[365960075,1749997834497,-460.0,0.00019178,2]
[365960076,1749997834506,-430.0,0.00019178,2]
[365960077,1749997834515,-460.0,0.00019178,2]
[365960078,1749997834525,-440.0,0.00019178,2]
[365960079,1749997834534,-460.0,0.00019178,2]
[365960080,1749997834544,-460.0,0.00019178,2]
[365960081,1749997834554,-460.0,0.00019178,2]
[365960082,1749997834563,-460.0,0.00019178,2]
[365960083,1749997834573,-370.0,0.00019178,2]
[365960084,1749997834582,-460.0,0.00019178,2]
[365960085,1749997834592,-460.0,0.00019178,2]
[365960086,1749997834602,-500.0,0.00019178,2]
[365960087,1749997834612,-460.0,0.00019178,2]
[365960088,1749997834621,-460.0,0.00019178,2]
[365960089,1749997834630,-506.82533047,0.00019178,2]
[365960090,1749997834640,-433.09996263,0.00019178,2]
[365960091,1749997834649,-460.0,0.00019178,2]
[365960092,1749997834658,-366.28113671,0.00019178,2]
[365960093,1749997834668,-490.67206302,0.00019178,2]
[365960094,1749997834677,-460.0,0.00019178,2]
[365960095,1749997834687,-418.98357953,0.00019178,2]
[365960096,1749997834696,-326.78767519,0.00019178,2]
[365960097,1749997834706,-460.0,0.00019178,2]
[365960098,1749997834715,-433.63106898,0.00019178,2]
[365960099,1749997834724,-430.0,0.00019178,2]
[365960100,1749997834734,-460.0,0.00019178,2]
[365960101,1749997834743,-440.0,0.00019178,2]
[365960102,1749997834753,-598.24723939,0.00019178,2]
[365960103,1749997834762,-460.0,0.00019178,2]
[365960104,1749997834772,-460.0,0.00019178,2]
[365960105,1749997834781,-460.0,0.00019178,2]
[365960106,1749997834791,-440.0,0.00019178,2]
[365960107,1749997834801,-460.0,0.00019178,2]
[365960108,1749997834811,-460.0,0.00019178,2]
[365960109,1749997834820,-400.85672942,0.00019178,2]
[365960110,1749997834831,-420.0,0.00019178,2]
[365960111,1749997834840,-440.0,0.00019178,2]
[365960112,1749997834850,-440.0,0.00019178,2]
[365960113,1749997834859,-460.0,0.00019178,2]